[Event "FRA-ch Open A-D 2018"]
[Site "Nimes"]
[Date "2018.08.24"]
[Round "7"]
[White "Llapasset, Jean Louis"]
[Black "Anes, Emmanuel"]
[Result "1-0"]
[ECO "B06"]
[WhiteElo "2086"]
[BlackElo "2029"]
[Annotator "NA"]
[PlyCount "87"]
[EventDate "2018.08.18"]
[EventType "tourn"]
[EventCountry "FRA"]
[SourceTitle "playchess.com"]
[Source "ChessBase"]
[SourceQuality "1"]
[TimeControl "40/5400+30:1800+30"]

1. e4 {[%emt 0:00:00]} g6 {[%emt 0:00:01]} 2. d4 {[%emt 0:00:00]} Bg7 {[%emt 0:00:04]} 3. Nc3 {[%emt 0:00:23]} d6 {[%emt 0:00:07]} 4. Be3 {[%emt 0:00:54]} a6 {[%emt 0:00:09]} 5. Qd2 {[%emt 0:00:35]} b5 {[%emt 0:03:13]} 6. Be2 {[%emt 0:03:42]} Bb7 {[%emt 0:02:21]} 7. a3 {[%emt 0:00:32]} Nd7 {[%emt 0:01:15]} 8. O-O-O {[%emt 0:03:14]} Rc8 {[%emt 0:09:27]} 9. h4 {[%emt 0:03:58]} c5 {[%emt 0:06:19]} 10. f3 {[%emt 0:24:50]} b4 {[%emt 0:21:41]} 11. axb4 {[%emt 0:01:15]} cxb4 {[%emt 0:00:08]} 12. Na2 {[%emt 0:00:58]} b3 {[%emt 0:07:19]} 13. Nc3 {[%emt 0:00:07]} bxc2 {[%emt 0:01:43]} 14. Kxc2 {[%emt 0:01:52]} Qa5 {[%emt 0:01:09]} 15. Nh3 {[%emt 0:01:29]} Nb6 {[%emt 0:15:01]} 16. Ra1 {[%emt 0:03:30]} Qb4 {[%emt 0:00:07]} 17. h5 {[%emt 0:10:22]} gxh5 {[%emt 0:10:18]} 18. Nf4 {[%emt 0:01:29]} Na4 {[%emt 0:05:39]} 19. Nd3 {[%emt 0:06:36]} Qa5 {[%emt 0:02:56]} 20. Rhc1 {[%emt 0:04:40]} Qb5 {[%emt 0:05:56]} 21. Kd1 {[%emt 0:02:29]} Nxc3+ {[%emt 0:02:22]} 22. Rxc3 {[%emt 0:00:37]} Rxc3 {[%emt 0:00:31]} 23. Qxc3 {[%emt 0:00:13]} Qb6 {[%emt 0:01:03]} 24. Ra3 {[%emt 0:00:23]} Kd7 {[%emt 0:01:45]} 25. Rb3 {[%emt 0:01:06]} Qc7 {[%emt 0:01:14]} 26. Qb4 {[%emt 0:00:20]} Bc8 {[%emt 0:00:18]} 27. Nf4 {[%emt 0:01:33]} Nf6 {[%emt 0:00:31]} 28. d5 {[%emt 0:03:52]} e6 {[%emt 0:00:33]} 29. Rc3 {[%emt 0:02:25]} Qb7 {[%emt 0:00:26]} 30. dxe6+ {[%emt 0:02:14]} fxe6 {[%emt 0:00:09]} 31. Bb6 {[%emt 0:00:35]} Ne8 {[%emt 0:00:21]} 32. Rb3 {[%emt 0:02:49]} Qc6 {[%emt 0:01:07]} 33. Nxh5 {[%emt 0:02:44]} Rg8 {[%emt 0:00:37]} 34. Nxg7 {[%emt 0:00:50]} Rxg7 {[%emt 0:00:02]} 35. g4 {[%emt 0:02:03]} Ke7 {[%emt 0:00:50]} 36. e5 {[%emt 0:01:12]} Kf7 {[%emt 0:00:08]} 37. Rc3 {[%emt 0:00:50]} Qd5+ {[%emt 0:00:18]} 38. Ke1 {[%emt 0:00:25]} Qxe5 {[%emt 0:00:10]} 39. Rxc8 {[%emt 0:00:16]} Qg3+ {[%emt 0:01:20]} 40. Bf2 {[%emt 0:00:26]} Qh2 {[%emt 0:00:42]} 41. Qb8 {[%emt 0:31:57]} Nf6 {[%emt 0:01:53]} 42. Rf8+ {[%emt 0:00:00]} Kg6 {[%emt 0:11:02]} 43. Bd3+ {[%emt 0:00:00]} Kg5 {[%emt 0:01:57]} 44. Be3+ {[%emt 0:00:00] Ng8} 1-0

[Event "FRA-ch Open A-D 2018"]
[Site "Nimes"]
[Date "2018.08.24"]
[Round "7"]
[White "Kollar, Romain"]
[Black "Pupier, Terry"]
[Result "1/2-1/2"]
[ECO "B32"]
[WhiteElo "2065"]
[BlackElo "2068"]
[Annotator "NA"]
[PlyCount "80"]
[EventDate "2018.08.18"]
[EventType "tourn"]
[EventCountry "FRA"]
[SourceTitle "playchess.com"]
[Source "ChessBase"]
[SourceQuality "1"]
[TimeControl "40/5400+30:1800+30"]

1. e4 {[%emt 0:01:18]} c5 {[%emt 0:00:00]} 2. Nf3 {[%emt 0:00:00]} Nc6 {[%emt 0:00:00]} 3. d4 {[%emt 0:00:17]} cxd4 {[%emt 0:00:00]} 4. Nxd4 {[%emt 0:00:04]} e5 {[%emt 0:00:00]} 5. Nb5 {[%emt 0:00:18]} d6 {[%emt 0:00:06]} 6. N1c3 {[%emt 0:00:07]} a6 {[%emt 0:00:18]} 7. Na3 {[%emt 0:00:07]} Be7 {[%emt 0:00:22]} 8. Nc4 {[%emt 0:02:07]} b5 {[%emt 0:00:48]} 9. Ne3 {[%emt 0:00:32]} Nf6 {[%emt 0:00:19]} 10. Ned5 {[%emt 0:00:35]} Be6 {[%emt 0:00:30] LiveBook: 19 Games} 11. g3 $11 {[%emt 0:00:30]} b4 {[%emt 0:00:30]} 12. Nxf6+ {[%emt 0:00:30]} Bxf6 {[%emt 0:00:30]} 13. Nd5 {[%emt 0:00:30]} Bxd5 {[%emt 0:00:30]} 14. exd5 {[%emt 0:00:30]} Nd4 {[%emt 0:00:30]} 15. Be3 {[%emt 0:00:30]} Qa5 {[%emt 0:00:30]} 16. Bc4 {[%emt 0:00:30]} Rc8 {[%emt 0:00:30]} 17. b3 {[%emt 0:00:30]} Nb5 {[%emt 0:00:30]} 18. Bxb5+ {[%emt 0:00:30]} Qxb5 {[%emt 0:00:30]} 19. a4 {[%emt 0:00:30]} Qa5 {[%emt 0:00:30]} 20. O-O {[%emt 0:00:30]} O-O {[%emt 0:00:30]} 21. Rc1 {[%emt 0:00:30]} Bd8 {[%emt 0:00:30]} 22. Qd3 {[%emt 0:00:30]} f5 {[%emt 0:00:30]} 23. Bd2 {[%emt 0:00:30]} e4 {[%emt 0:00:30]} 24. Qd4 {[%emt 0:00:30]} Rb8 {[%emt 0:00:30]} 25. c3 {[%emt 0:00:30]} Bb6 {[%emt 0:00:30]} 26. cxb4 {[%emt 0:00:30]} Bxd4 {[%emt 0:00:30]} 27. bxa5 {[%emt 0:00:30]} Rxb3 {[%emt 0:00:30]} 28. Rc6 {[%emt 0:00:30]} Ra8 {[%emt 0:00:30]} 29. Rxd6 {[%emt 0:00:30]} Rd3 {[%emt 0:00:30]} 30. Bf4 {[%emt 0:00:30]} h6 31. h4 {[%emt 1:06:17]} Rb8 {[%emt 1:29:59]} 32. Rxa6 {[%emt 0:03:15]} Rb2 {[%emt 0:00:28]} 33. d6 {[%emt 0:04:32]} Kf7 {[%emt 0:01:57]} 34. Rc6 {[%emt 0:08:30]} e3 {[%emt 0:01:17]} 35. Bxe3 {[%emt 0:05:02]} Bxe3 {[%emt 0:00:08]} 36. fxe3 {[%emt 0:00:05]} Rdd2 {[%emt 0:00:03]} 37. Rfc1 {[%emt 0:00:44]} Rg2+ {[%emt 0:00:08]} 38. Kh1 {[%emt 0:00:16]} Rh2+ {[%emt 0:00:05]} 39. Kg1 {[%emt 0:00:03]} Rhg2+ {[%emt 0:00:07]} 40. Kh1 {[%emt 0:00:05]} Rh2+ {[%emt 0:00:05]} 1/2-1/2

[Event "FRA-ch Open A-D 2018"]
[Site "Nimes"]
[Date "2018.08.24"]
[Round "7"]
[White "Bianchi, Guillaume"]
[Black "El Mchaouri Mas, Younes"]
[Result "1-0"]
[ECO "A45"]
[WhiteElo "2064"]
[BlackElo "2120"]
[Annotator "NA"]
[PlyCount "113"]
[EventDate "2018.08.18"]
[EventType "tourn"]
[EventCountry "FRA"]
[SourceTitle "playchess.com"]
[Source "ChessBase"]
[SourceQuality "1"]
[TimeControl "40/5400+30:1800+30"]

1. d4 {[%emt 0:00:00]} Nf6 {[%emt 0:00:00]} 2. Bf4 {[%emt 0:00:25]} g6 {[%emt 0:00:18]} 3. Nc3 {[%emt 0:00:15]} d5 {[%emt 0:07:45]} 4. e3 {[%emt 0:01:09]} Bg7 {[%emt 0:00:32]} 5. Be2 {[%emt 0:03:48]} O-O {[%emt 0:01:55]} 6. h4 {[%emt 0:03:17]} c5 {[%emt 0:01:29]} 7. h5 {[%emt 0:04:22]} Nc6 {[%emt 0:20:58]} 8. hxg6 {[%emt 0:06:29]} hxg6 {[%emt 0:13:27]} 9. Nf3 $11 {[%emt 0:07:08]} Qa5 {[%emt 0:05:54]} 10. Kf1 {[%emt 0:00:30]} Ne4 {[%emt 0:00:30]} 11. a3 {[%emt 0:18:45]} Bf5 {[%emt 0:15:37]} 12. Nh4 {[%emt 0:35:13]} Nxc3 {[%emt 0:14:22]} 13. bxc3 {[%emt 0:00:07]} Bd7 {[%emt 0:00:47]} 14. Bg4 {[%emt 0:05:26]} Qd8 {[%emt 0:04:45]} 15. Rb1 {[%emt 0:03:03]} e5 {[%emt 0:00:51]} 16. dxe5 {[%emt 0:01:44]} Qc8 {[%emt 0:04:59]} 17. e6 {[%emt 0:02:23]} Bxe6 {[%emt 0:00:14]} 18. Bxe6 {[%emt 0:00:08]} Qxe6 {[%emt 0:00:12]} 19. Rxb7 {[%emt 0:00:22]} Ne5 {[%emt 0:01:57]} 20. Qb1 {[%emt 0:02:08]} Nc4 {[%emt 0:02:10]} 21. Kg1 {[%emt 0:00:30]} d4 {[%emt 0:00:33]} 22. cxd4 {[%emt 0:00:43]} cxd4 {[%emt 0:00:06]} 23. Qb3 {[%emt 0:01:03]} dxe3 {[%emt 0:00:46]} 24. fxe3 {[%emt 0:00:30]} Bd4 {[%emt 0:00:52]} 25. Kf2 {[%emt 0:00:55]} Na5 {[%emt 0:00:51]} 26. Qxe6 {[%emt 0:00:51]} fxe6 {[%emt 0:00:01]} 27. Nxg6 {[%emt 0:01:02]} Nxb7 {[%emt 0:00:16]} 28. exd4 {[%emt 0:00:34]} Kg7 {[%emt 0:00:19]} 29. Nxf8 {[%emt 0:00:18]} Rxf8 {[%emt 0:00:11]} 30. Ke3 {[%emt 0:00:11]} Rc8 {[%emt 0:00:44]} 31. Kd3 {[%emt 0:00:13]} Rc6 {[%emt 0:00:10]} 32. Be5+ {[%emt 0:00:14]} Kg6 {[%emt 0:00:10]} 33. Rf1 {[%emt 0:00:45]} Ra6 {[%emt 0:00:12]} 34. Ra1 {[%emt 0:00:31]} Na5 {[%emt 0:00:49]} 35. a4 {[%emt 0:01:11]} Nc6 {[%emt 0:00:21]} 36. Bg3 {[%emt 0:00:32]} Ra5 {[%emt 0:00:29]} 37. Bf2 {[%emt 0:00:26]} Nb4+ {[%emt 0:01:56]} 38. Kc3 {[%emt 0:00:44]} Nd5+ {[%emt 0:00:49]} 39. Kb3 {[%emt 0:00:26]} Nf4 {[%emt 0:00:22]} 40. g3 {[%emt 0:00:25]} Nh3 {[%emt 0:00:40]} 41. Be3 {[%emt 0:30:13]} Rf5 {[%emt 0:30:14]} 42. Rh1 {[%emt 0:00:56]} Ng5 {[%emt 0:00:00]} 43. Bxg5 {[%emt 0:00:00]} Rxg5 {[%emt 0:00:00]} 44. Rg1 {[%emt 0:00:00]} Rg4 {[%emt 0:00:00]} 45. c3 {[%emt 0:00:00]} Kf6 {[%emt 0:00:00]} 46. Rf1+ {[%emt 0:00:00]} Ke7 {[%emt 0:00:00]} 47. Rf3 {[%emt 0:00:00]} Kd6 {[%emt 0:00:00]} 48. Re3 {[%emt 0:00:00]} Rg7 {[%emt 0:00:00]} 49. Kc4 {[%emt 0:00:00]} Rg5 {[%emt 0:00:00]} 50. Rf3 {[%emt 0:00:00]} Ra5 {[%emt 0:00:00]} 51. Kb4 {[%emt 0:00:00]} Rg5 {[%emt 0:00:00]} 52. a5 {[%emt 0:00:00]} a6 {[%emt 0:00:00]} 53. c4 {[%emt 0:00:00]} Rg4 {[%emt 0:00:00]} 54. Kc3 {[%emt 0:00:00]} Rg5 {[%emt 0:00:00]} 55. c5+ {[%emt 0:00:00]} Kc6 {[%emt 0:00:00]} 56. Kc4 {[%emt 0:00:00]} Rg6 {[%emt 0:00:00]} 57. Rb3 {[%emt 0:00:00]} 1-0

[Event "FRA-ch Open A-D 2018"]
[Site "Nimes"]
[Date "2018.08.24"]
[Round "7"]
[White "Verin, Jules"]
[Black "Cassam-Chenai, Eric"]
[Result "1/2-1/2"]
[ECO "E16"]
[WhiteElo "1941"]
[BlackElo "1914"]
[Annotator "NA"]
[PlyCount "83"]
[EventDate "2018.08.18"]
[EventType "tourn"]
[EventCountry "FRA"]
[SourceTitle "playchess.com"]
[Source "ChessBase"]
[SourceQuality "1"]
[TimeControl "40/5400+30:1800+30"]

1. d4 {[%emt 0:00:00]} Nf6 {[%emt 0:00:00]} 2. Nf3 {[%emt 0:00:00]} e6 {[%emt 0:00:00]} 3. c4 {[%emt 0:00:00]} Bb4+ {[%emt 0:00:00]} 4. Bd2 {[%emt 0:00:07]} Qe7 {[%emt 0:00:00]} 5. Nc3 {[%emt 0:05:38]} Bxc3 {[%emt 0:04:41]} 6. Bxc3 {[%emt 0:01:10]} Ne4 {[%emt 0:00:24]} 7. Qc2 {[%emt 0:02:07]} f5 {[%emt 0:07:41]} 8. g3 {[%emt 0:04:15] LiveBook: 3 Games} b6 $14 {[%emt 0:12:15]} 9. Bg2 {[%emt 0:02:37]} Nxc3 {[%emt 0:00:50]} 10. Qxc3 {[%emt 0:02:57]} Bb7 {[%emt 0:00:14]} 11. O-O {[%emt 0:03:17]} O-O {[%emt 0:05:54]} 12. Rfd1 {[%emt 0:07:49]} d6 {[%emt 0:04:40]} 13. Rd2 {[%emt 0:16:54]} Nd7 {[%emt 0:00:40]} 14. Ne5 {[%emt 0:14:55]} Bxg2 {[%emt 0:11:37]} 15. Nxd7 {[%emt 0:00:16]} Qxd7 {[%emt 0:01:52]} 16. Kxg2 {[%emt 0:00:20]} f4 {[%emt 0:01:41]} 17. f3 {[%emt 0:06:06]} Qe7 {[%emt 0:05:19]} 18. e4 {[%emt 0:06:42]} Qg5 {[%emt 0:10:35]} 19. e5 {[%emt 0:08:28]} Rf5 {[%emt 0:03:22]} 20. Re1 {[%emt 0:01:12]} fxg3 {[%emt 0:06:25]} 21. hxg3 {[%emt 0:00:57]} Raf8 {[%emt 0:01:32]} 22. Rf2 {[%emt 0:01:59]} h5 {[%emt 0:07:16]} 23. exd6 {[%emt 0:03:19]} cxd6 {[%emt 0:00:30]} 24. Qe3 {[%emt 0:01:03]} Qxe3 {[%emt 0:00:36]} 25. Rxe3 {[%emt 0:00:06]} R8f6 {[%emt 0:00:19]} 26. Rfe2 {[%emt 0:02:10]} Ra5 {[%emt 0:04:16]} 27. a3 {[%emt 0:01:18]} Kf7 {[%emt 0:00:33]} 28. f4 {[%emt 0:02:02]} Raf5 {[%emt 0:00:21]} 29. b4 {[%emt 0:00:44]} h4 {[%emt 0:00:37]} 30. d5 {[%emt 0:01:04]} exd5 {[%emt 0:00:37]} 31. cxd5 {[%emt 0:01:04]} Rg6 {[%emt 0:03:31]} 32. Re7+ {[%emt 0:01:14]} Kg8 {[%emt 0:00:09]} 33. R2e3 {[%emt 0:02:38]} Rxd5 {[%emt 0:05:08]} 34. Rxa7 {[%emt 0:00:32]} Rd2+ {[%emt 0:01:22]} 35. Kh3 {[%emt 0:00:23]} Rd1 {[%emt 0:00:32]} 36. Kh2 {[%emt 0:00:57]} hxg3+ {[%emt 0:00:29]} 37. Rxg3 {[%emt 0:00:41]} Rd2+ {[%emt 0:00:08]} 38. Kh3 {[%emt 0:00:37]} Rh6+ {[%emt 0:00:19]} 39. Kg4 {[%emt 0:00:12]} Rg6+ {[%emt 0:00:58]} 40. Kh3 {[%emt 0:00:28]} Rh6+ {[%emt 0:00:33]} 41. Kg4 {[%emt 0:30:17]} Rg6+ {[%emt 0:02:56]} 42. Kh3 {[%emt 0:00:00]} 1/2-1/2

[Event "FRA-ch Open A-D 2018"]
[Site "Nimes"]
[Date "2018.08.24"]
[Round "7"]
[White "Sabatier, Mathis"]
[Black "Verhille, Elie"]
[Result "1/2-1/2"]
[ECO "A05"]
[WhiteElo "1904"]
[BlackElo "1862"]
[Annotator "NA"]
[PlyCount "81"]
[EventDate "2018.08.18"]
[EventType "tourn"]
[EventCountry "FRA"]
[SourceTitle "playchess.com"]
[Source "ChessBase"]
[SourceQuality "1"]
[TimeControl "40/5400+30:1800+30"]

1. Nf3 {[%emt 0:00:00]} Nf6 {[%emt 0:00:00]} 2. g3 {[%emt 0:00:02]} g6 {[%emt 0:00:00]} 3. b4 {[%emt 0:00:07]} Bg7 {[%emt 0:00:06]} 4. Bb2 {[%emt 0:00:06]} d5 {[%emt 0:00:23]} 5. Bg2 {[%emt 0:00:09]} O-O {[%emt 0:00:25]} 6. O-O {[%emt 0:00:24]} c6 {[%emt 0:04:31]} 7. a4 {[%emt 0:02:52]} Re8 {[%emt 0:01:56]} 8. d3 {[%emt 0:04:31]} Nbd7 {[%emt 0:03:21]} 9. Nbd2 {[%emt 0:06:21]} e5 {[%emt 0:08:08]} 10. e4 {[%emt 0:11:27]} Qc7 {[%emt 0:11:37]} 11. c4 {[%emt 0:05:20]} dxe4 {[%emt 0:00:54]} 12. dxe4 {[%emt 0:00:43]} c5 {[%emt 0:03:28]} 13. b5 {[%emt 0:00:46]} b6 {[%emt 0:00:49]} 14. a5 $14 {[%emt 0:05:27]} a6 {[%emt 0:04:30]} 15. axb6 {[%emt 0:15:59]} Nxb6 {[%emt 0:03:02]} 16. Qe2 {[%emt 0:07:12]} Bb7 {[%emt 0:08:07]} 17. Rfb1 {[%emt 0:05:58]} axb5 {[%emt 0:09:33]} 18. Rxa8 {[%emt 0:01:08]} Bxa8 {[%emt 0:00:39]} 19. cxb5 {[%emt 0:02:15]} Nfd7 {[%emt 0:01:22]} 20. Rc1 {[%emt 0:04:16]} Nf8 {[%emt 0:12:34]} 21. Ba3 {[%emt 0:07:12]} Ne6 {[%emt 0:01:47]} 22. Bh3 {[%emt 0:02:20]} Bf8 {[%emt 0:07:35]} 23. Nc4 {[%emt 0:02:57]} Nd4 {[%emt 0:02:38]} 24. Nxd4 {[%emt 0:00:51]} exd4 {[%emt 0:00:14]} 25. Bg2 {[%emt 0:01:50]} Nxc4 {[%emt 0:04:57]} 26. Rxc4 {[%emt 0:00:35]} Qa5 {[%emt 0:01:36]} 27. Bxc5 {[%emt 0:03:41]} Qxb5 {[%emt 0:00:34]} 28. Bxf8 {[%emt 0:01:33]} Kxf8 {[%emt 0:01:52]} 29. Qd3 {[%emt 0:00:26]} Kg8 {[%emt 0:01:36]} 30. Rxd4 {[%emt 0:01:18]} Qxd3 {[%emt 0:00:38]} 31. Rxd3 {[%emt 0:00:01]} Bxe4 {[%emt 0:00:35]} 32. Re3 {[%emt 0:00:37]} f5 {[%emt 0:00:21]} 33. Bxe4 {[%emt 0:00:51]} Rxe4 {[%emt 0:00:03]} 34. Rxe4 {[%emt 0:01:19]} fxe4 {[%emt 0:00:01]} 35. Kf1 {[%emt 0:00:25]} Kf7 {[%emt 0:00:04]} 36. Ke2 {[%emt 0:00:04]} Ke6 {[%emt 0:00:03]} 37. Ke3 {[%emt 0:00:05]} Ke5 {[%emt 0:00:06]} 38. f3 {[%emt 0:00:20]} exf3 {[%emt 0:00:12]} 39. Kxf3 {[%emt 0:00:04]} h6 {[%emt 0:01:07]} 40. Ke3 {[%emt 0:00:30]} g5 {[%emt 0:00:10]} 41. g4 {[%emt 0:30:32]} 1/2-1/2

[Event "FRA-ch Open A-D 2018"]
[Site "Nimes"]
[Date "2018.08.24"]
[Round "7"]
[White "Brouard, Gregoire"]
[Black "Dimey, Cyrille"]
[Result "1-0"]
[ECO "A56"]
[WhiteElo "1898"]
[BlackElo "1807"]
[Annotator "NA"]
[PlyCount "50"]
[EventDate "2018.08.18"]
[EventType "tourn"]
[EventCountry "FRA"]
[SourceTitle "playchess.com"]
[Source "ChessBase"]
[SourceQuality "1"]
[TimeControl "40/5400+30:1800+30"]

1. d4 {[%emt 0:00:09]} Nf6 {[%emt 0:00:00]} 2. c4 {[%emt 0:00:09]} c5 {[%emt 0:00:00]} 3. d5 {[%emt 0:00:06]} e5 {[%emt 0:00:00]} 4. Nc3 {[%emt 0:00:49]} d6 {[%emt 0:00:06]} 5. e4 {[%emt 0:00:26]} Be7 {[%emt 0:00:10]} 6. f4 {[%emt 0:01:28]} exf4 {[%emt 0:00:19]} 7. Bxf4 {[%emt 0:00:08]} O-O {[%emt 0:00:20]} 8. Bd3 {[%emt 0:03:31]} Nbd7 {[%emt 0:00:56]} 9. Nf3 {[%emt 0:00:40]} Nh5 {[%emt 0:01:24]} 10. Bd2 $14 {[%emt 0:05:58]} g6 {[%emt 0:01:02]} 11. Qc2 {[%emt 0:01:31]} Bf6 {[%emt 0:03:11]} 12. Ne2 {[%emt 0:10:10]} Ne5 {[%emt 0:04:17]} 13. Nxe5 {[%emt 0:15:16]} Bxe5 {[%emt 0:00:28]} 14. O-O-O {[%emt 0:01:26]} Bg4 {[%emt 0:07:37]} 15. Rde1 {[%emt 0:06:56]} Bxe2 {[%emt 0:04:42]} 16. Bxe2 {[%emt 0:02:41]} Nf6 {[%emt 0:10:16]} 17. g3 {[%emt 0:06:06]} Nd7 {[%emt 0:02:57]} 18. Bg4 {[%emt 0:02:49]} Nf6 {[%emt 0:03:35]} 19. Bh3 {[%emt 0:01:48]} a6 {[%emt 0:02:16]} 20. Rhf1 {[%emt 0:12:33]} Ne8 {[%emt 0:11:03]} 21. Bh6 {[%emt 0:07:29]} Ng7 {[%emt 0:00:31]} 22. Rf3 {[%emt 0:01:43]} Qa5 {[%emt 0:03:49]} 23. Ref1 {[%emt 0:02:40]} Qxa2 {[%emt 0:10:52]} 24. Ra3 {[%emt 0:00:36]} Bxb2+ {[%emt 0:02:20]} 25. Qxb2 {[%emt 0:00:05]} Qxc4+ 1-0

[Event "FRA-ch Open A-D 2018"]
[Site "Nimes"]
[Date "2018.08.24"]
[Round "7"]
[White "Lancelot, Renaud"]
[Black "Radoman, Emmanuel"]
[Result "0-1"]
[ECO "B07"]
[WhiteElo "1882"]
[BlackElo "1818"]
[Annotator "NA"]
[PlyCount "130"]
[EventDate "2018.08.18"]
[EventType "tourn"]
[EventCountry "FRA"]
[SourceTitle "playchess.com"]
[Source "ChessBase"]
[SourceQuality "1"]
[TimeControl "40/5400+30:1800+30"]

1. e4 {[%emt 0:00:00]} d6 {[%emt 0:04:12]} 2. d4 {[%emt 0:01:36]} Nf6 {[%emt 0:00:04]} 3. Nc3 {[%emt 0:00:35]} g6 {[%emt 0:00:12]} 4. Be3 {[%emt 0:06:51]} c6 {[%emt 0:00:13]} 5. h3 {[%emt 0:05:13]} Nbd7 {[%emt 0:07:58]} 6. Nf3 {[%emt 0:04:09]} Qc7 {[%emt 0:04:43]} 7. a3 {[%emt 0:07:52]} Bg7 {[%emt 0:04:23]} 8. Be2 {[%emt 0:06:39]} O-O {[%emt 0:02:06]} 9. Qd2 {[%emt 0:02:44]} b5 {[%emt 0:08:29]} 10. O-O {[%emt 0:05:03]} Bb7 {[%emt 0:01:45]} 11. Bh6 {[%emt 0:08:19]} a6 {[%emt 0:01:06]} 12. Bxg7 $11 {[%emt 0:01:52]} Kxg7 {[%emt 0:01:57]} 13. Rfe1 {[%emt 0:06:11]} e5 {[%emt 0:03:18]} 14. Bf1 {[%emt 0:05:16]} Rad8 {[%emt 0:02:00]} 15. Rad1 {[%emt 0:05:23]} Rfe8 {[%emt 0:07:39]} 16. Qc1 {[%emt 0:04:14]} c5 {[%emt 0:13:17]} 17. d5 {[%emt 0:01:11]} b4 {[%emt 0:00:57]} 18. Nb1 {[%emt 0:01:58]} a5 {[%emt 0:08:28]} 19. a4 {[%emt 0:01:53]} c4 {[%emt 0:00:26]} 20. c3 {[%emt 0:03:31]} Rc8 {[%emt 0:07:47]} 21. Nfd2 {[%emt 0:03:41]} Ba6 {[%emt 0:02:15]} 22. b3 {[%emt 0:02:12]} Nc5 {[%emt 0:01:05]} 23. cxb4 {[%emt 0:05:02]} axb4 {[%emt 0:01:18]} 24. Bxc4 {[%emt 0:00:19]} Qa7 {[%emt 0:09:03]} 25. Qc2 {[%emt 0:00:34]} Red8 {[%emt 0:01:38]} 26. Re3 {[%emt 0:04:12]} Nfd7 {[%emt 0:01:42]} 27. Bxa6 {[%emt 0:00:27]} Qxa6 {[%emt 0:01:52]} 28. Qc4 {[%emt 0:03:00]} Qb7 {[%emt 0:01:32]} 29. Qe2 {[%emt 0:01:11]} Nb6 {[%emt 0:00:49]} 30. Rc1 {[%emt 0:00:39]} Rc7 {[%emt 0:01:15]} 31. Qb5 {[%emt 0:00:35]} Nbd7 {[%emt 0:01:12]} 32. Qxb7 {[%emt 0:00:25]} Rxb7 {[%emt 0:00:05]} 33. Nc4 {[%emt 0:00:15]} Nf6 {[%emt 0:01:07]} 34. Nxd6 {[%emt 0:00:22]} Rxd6 {[%emt 0:00:20]} 35. Rxc5 {[%emt 0:00:09]} Nh5 {[%emt 0:00:37]} 36. Nd2 {[%emt 0:00:59]} f6 {[%emt 0:00:25]} 37. Nc4 {[%emt 0:00:29]} Rdd7 {[%emt 0:00:27]} 38. Na5 {[%emt 0:01:35]} Rb6 {[%emt 0:00:37]} 39. g3 {[%emt 0:00:55]} Kf7 {[%emt 0:00:35]} 40. Re1 {[%emt 0:00:20]} Ng7 {[%emt 0:00:11]} 41. Rec1 {[%emt 0:30:23]} Ne8 {[%emt 0:01:36]} 42. Rc6 {[%emt 0:00:00]} Rb8 {[%emt 0:01:22]} 43. f3 {[%emt 0:00:00]} h5 {[%emt 0:09:24]} 44. Rc8 {[%emt 0:00:00]} Rxc8 {[%emt 0:08:58]} 45. Rxc8 {[%emt 0:00:00]} Rc7 {[%emt 0:00:09]} 46. Rxc7+ {[%emt 0:00:00]} Nxc7 {[%emt 0:00:03]} 47. Nc6 {[%emt 0:00:00]} Na6 {[%emt 0:00:11]} 48. a5 {[%emt 0:00:00]} Ke8 {[%emt 0:01:08]} 49. Kf2 {[%emt 0:00:00]} Kd7 {[%emt 0:00:15]} 50. Ke3 {[%emt 0:00:00]} Nc5 {[%emt 0:10:24]} 51. Nxb4 {[%emt 0:00:00]} Nxb3 {[%emt 0:00:11]} 52. a6 {[%emt 0:00:00]} Kc8 {[%emt 0:00:19]} 53. a7 {[%emt 0:00:00]} Kb7 {[%emt 0:00:04]} 54. Nc6 {[%emt 0:00:00]} Nc5 {[%emt 0:01:07]} 55. f4 {[%emt 0:00:26]} Nd7 {[%emt 0:01:59]} 56. g4 {[%emt 0:01:13]} hxg4 {[%emt 0:00:14]} 57. hxg4 {[%emt 0:00:51]} g5 {[%emt 0:00:35]} 58. f5 {[%emt 0:02:31]} Ka8 {[%emt 0:01:20]} 59. d6 {[%emt 0:03:16]} Kb7 {[%emt 0:00:19]} 60. Kd3 {[%emt 0:00:46]} Nb6 {[%emt 0:00:37]} 61. a8=Q+ Kxa8 {[%emt 0:00:00]} 62. Nxe5 {[%emt 0:02:54]} fxe5 {[%emt 0:00:00]} 63. f6 {[%emt 0:00:20]} Kb7 {[%emt 0:00:27]} 64. f7 {[%emt 0:00:07]} Nd7 {[%emt 0:00:07]} 65. Kc4 {[%emt 0:00:10]} Kc6 {[%emt 0:00:26]} 0-1

[Event "FRA-ch Open A-D 2018"]
[Site "Nimes"]
[Date "2018.08.24"]
[Round "7"]
[White "Auffray-Bonnet, Gaspard"]
[Black "Rasolo, Loick"]
[Result "0-1"]
[ECO "C54"]
[WhiteElo "1736"]
[BlackElo "1723"]
[Annotator "NA"]
[PlyCount "90"]
[EventDate "2018.08.18"]
[EventType "tourn"]
[EventCountry "FRA"]
[SourceTitle "playchess.com"]
[Source "ChessBase"]
[SourceQuality "1"]
[TimeControl "40/5400+30:1800+30"]

1. e4 {[%emt 0:00:00]} Nc6 {[%emt 0:00:00]} 2. Nf3 {[%emt 0:00:00]} e5 {[%emt 0:00:00]} 3. Bc4 {[%emt 0:00:00]} Bc5 {[%emt 0:00:00]} 4. c3 {[%emt 0:00:07]} Nf6 {[%emt 0:00:00]} 5. d4 {[%emt 0:00:18]} exd4 {[%emt 0:00:03]} 6. e5 {[%emt 0:00:19]} d5 {[%emt 0:00:45]} 7. Bb5 {[%emt 0:00:03]} Ne4 {[%emt 0:00:31]} 8. cxd4 {[%emt 0:00:05]} Bb4+ {[%emt 0:00:11]} 9. Bd2 {[%emt 0:00:07]} Nxd2 {[%emt 0:00:07]} 10. Nbxd2 {[%emt 0:00:08]} O-O {[%emt 0:00:36]} 11. a3 {[%emt 0:00:27]} Bxd2+ {[%emt 0:00:26]} 12. Qxd2 {[%emt 0:00:12]} Ne7 {[%emt 0:01:40]} 13. Rc1 {[%emt 0:00:47]} c6 {[%emt 0:00:05]} 14. Bd3 {[%emt 0:01:47]} Bf5 {[%emt 0:00:13]} 15. O-O {[%emt 0:00:23]} Qd7 {[%emt 0:03:24]} 16. Nh4 {[%emt 0:03:23]} Bxd3 {[%emt 0:00:13]} 17. Qxd3 {[%emt 0:00:01]} Qg4 {[%emt 0:00:36]} 18. g3 {[%emt 0:01:03]} Rae8 {[%emt 0:11:19]} 19. f3 {[%emt 0:00:59]} Qh3 {[%emt 0:04:11]} 20. f4 {[%emt 0:01:11]} f5 {[%emt 0:07:00]} 21. b4 {[%emt 0:06:39]} a6 {[%emt 0:03:02]} 22. a4 {[%emt 0:00:22]} Ra8 {[%emt 0:07:48]} 23. a5 {[%emt 0:01:03]} Rae8 {[%emt 0:01:44]} 24. Nf3 {[%emt 0:01:31]} h6 {[%emt 0:02:11]} 25. Nd2 {[%emt 0:00:37]} g5 {[%emt 0:00:59]} 26. Qf3 {[%emt 0:01:38]} Ng6 {[%emt 0:06:33]} 27. Nb3 {[%emt 0:06:06]} Rf7 {[%emt 0:00:31]} 28. fxg5 {[%emt 0:02:41]} hxg5 {[%emt 0:00:11]} 29. Rf2 {[%emt 0:02:54]} f4 {[%emt 0:02:58]} 30. Rc3 {[%emt 0:03:23]} Ref8 {[%emt 0:00:37]} 31. Qg2 {[%emt 0:08:56]} Qf5 {[%emt 0:10:47]} 32. g4 {[%emt 0:04:37]} Qe4 {[%emt 0:00:51]} 33. Qxe4 {[%emt 0:01:45]} dxe4 {[%emt 0:01:20]} 34. Nc5 {[%emt 0:00:36]} e3 {[%emt 0:00:14]} 35. Rb2 {[%emt 0:01:00]} Nh4 {[%emt 0:00:41]} 36. Ne4 {[%emt 0:01:35]} Rd7 {[%emt 0:01:04]} 37. Rc4 {[%emt 0:09:22]} Rxd4 {[%emt 0:00:24]} 38. Rxd4 {[%emt 0:00:11]} Nf3+ {[%emt 0:00:02]} 39. Kf1 {[%emt 0:00:59]} Nxd4 {[%emt 0:00:04]} 40. Nxg5 {[%emt 0:01:30]} f3 {[%emt 0:02:45]} 41. Ne4 {[%emt 0:30:51]} Rf4 {[%emt 0:30:41]} 42. Nf6+ {[%emt 0:00:47]} Kf7 {[%emt 0:00:39]} 43. h3 {[%emt 0:00:23]} f2 {[%emt 0:00:17]} 44. Nh5 {[%emt 0:00:13]} Rf3 {[%emt 0:00:13]} 45. e6+ {[%emt 0:01:20]} Kxe6 {[%emt 0:00:20]} 0-1